bitfinex-derivatives/quotes_BTCF0:USTF0_20241213
["timestamp","ask_amount","ask_price","bid_price","bid_amount"]
[1734116803144,0.58083018,101500.0,101490.0,1.57847723]
[1734116805857,0.58083018,101500.0,101490.0,0.37847723]
[1734116806352,0.58083018,101500.0,101490.0,1.34260519]
[1734116807150,0.58083018,101500.0,101490.0,0.14260519]
[1734116810551,0.69814226,101500.0,101490.0,0.14260519]
[1734116813259,0.69814226,101500.0,101490.0,1.34260519]
[1734116813463,0.58083018,101500.0,101490.0,1.34260519]
[1734116814654,0.69814226,101500.0,101490.0,1.34260519]
[1734116814952,0.66624226,101500.0,101490.0,1.43595238]
[1734116815154,0.66624226,101500.0,101490.0,1.53565238]
[1734116815155,0.54893018,101500.0,101490.0,1.53565238]
[1734116815351,0.4608,101500.0,101490.0,1.53565238]
[1734116815550,0.4608,101500.0,101490.0,1.67817723]
[1734116815551,0.54893018,101500.0,101490.0,1.67817723]
[1734116817249,0.54893018,101500.0,101490.0,1.64598021]
[1734116817657,0.54893018,101500.0,101490.0,1.61278021]
[1734116817864,0.58003018,101500.0,101490.0,1.54628021]
[1734116818055,0.58003018,101500.0,101490.0,1.31040817]
[1734116818758,0.69734226,101500.0,101490.0,1.31040817]
[1734116818954,0.58003018,101500.0,101490.0,1.31040817]
[1734116819262,0.69734226,101500.0,101490.0,1.31040817]
[1734116821253,0.69734226,101500.0,101490.0,1.34244654]
[1734116822671,0.60921208,101500.0,101490.0,1.34244654]
[1734116822964,0.69763516,101500.0,101490.0,1.34244654]
[1734116823153,0.60921208,101500.0,101490.0,1.34244654]
[1734116823349,0.60921208,101500.0,101490.0,1.57831858]
[1734116823748,0.6976665,101500.0,101490.0,1.57831858]
[1734116824356,0.60921208,101500.0,101490.0,1.57831858]
[1734116826361,0.63878364,101500.0,101490.0,1.57831858]
[1734116826867,0.75687809,101500.0,101490.0,1.87318019]
[1734116827163,0.75687809,101500.0,101490.0,1.48513004]
[1734116827164,0.78122918,101500.0,101490.0,1.48513004]
[1734116827363,0.78122918,101500.0,101470.0,0.23587204]
[1734116827364,0.049262,101490.0,101470.0,0.23587204]
[1734116827665,1.1555863,101480.0,101470.0,0.0431133]
[1734116827856,0.94285809,101480.0,101470.0,1.2]
[1734116828468,1.11980828,101480.0,101470.0,1.2]
[1734116828765,1.11979502,101480.0,101470.0,1.2]
[1734116829162,1.24284483,101480.0,101470.0,1.2]
[1734116829462,0.049281,101460.0,101450.0,0.04928]
[1734116829666,0.049281,101450.0,101440.0,0.05088794]
[1734116829962,0.66387697,101450.0,101440.0,1.38572967]
[1734116830269,0.54611866,101450.0,101440.0,1.38572967]
[1734116830458,0.4241,101450.0,101440.0,1.38572967]
[1734116830858,0.3608,101450.0,101440.0,1.38572967]
[1734116831058,0.3608,101450.0,101440.0,1.41732967]
[1734116832763,0.3608,101450.0,101440.0,1.37419799]
[1734116834163,0.30307697,101470.0,101440.0,1.37419799]
[1734116834360,0.3608,101450.0,101440.0,1.28100945]
[1734116834758,0.3608,101450.0,101440.0,0.08100945]
[1734116835364,0.3608,101450.0,101440.0,1.28100945]
[1734116838767,0.3608,101450.0,101440.0,1.37419799]
[1734116843072,0.3608,101450.0,101440.0,1.39408885]
[1734116845170,0.3608,101450.0,101440.0,1.42332263]
[1734116846171,0.42201116,101450.0,101440.0,0.04940945]
[1734116846364,0.4598,101450.0,101440.0,0.11062061]
[1734116846761,0.4598,101450.0,101440.0,1.31062061]
[1734116846961,0.4598,101450.0,101440.0,1.37183177]
[1734116847268,0.3608,101450.0,101440.0,1.37183177]
[1734116847475,0.3608,101450.0,101440.0,1.40353177]
[1734116851772,0.3608,101450.0,101440.0,0.20353177]
[1734116851773,0.7216,101450.0,101440.0,0.20353177]
[1734116852267,0.7216,101450.0,101440.0,1.40353177]
[1734116853575,0.80991866,101450.0,101440.0,1.40353177]
[1734116853976,0.7216,101450.0,101440.0,1.40353177]
[1734116854179,0.80991866,101450.0,101440.0,1.40353177]
[1734116854378,0.80991866,101450.0,101440.0,1.4466575]
[1734116855077,0.08831866,101450.0,101440.0,1.8074575]
[1734116855374,0.35292336,101460.0,101450.0,0.049281]
[1734116855573,0.35292336,101460.0,101450.0,1.03782625]
[1734116855769,0.35292336,101460.0,101450.0,0.97661509]
[1734116855972,0.41413452,101460.0,101450.0,0.32820415]
[1734116856172,0.53189283,101460.0,101450.0,0.04312573]
[1734116856373,0.82137121,101460.0,101450.0,0.04312573]
[1734116856568,0.67417332,101460.0,101440.0,0.34641603]
[1734116856772,0.67417332,101460.0,101440.0,1.58954246]
[1734116856773,0.69239746,101450.0,101440.0,1.58954246]
[1734116857280,0.69239746,101450.0,101440.0,1.62161442]
[1734116857580,0.57439859,101450.0,101440.0,1.62161442]
[1734116859267,0.75106139,101450.0,101440.0,1.5283313]
[1734116859474,0.75106139,101450.0,101440.0,1.29253388]
[1734116860072,0.75106139,101450.0,101440.0,1.5283313]
[1734116860274,0.75106139,101450.0,101440.0,1.70555093]
[1734116860481,0.75106139,101450.0,101440.0,1.46975351]
[1734116861376,0.80034239,101450.0,101440.0,1.42662708]
[1734116861778,0.80034239,101450.0,101440.0,1.46975637]
[1734116862580,0.89362551,101450.0,101440.0,1.37734508]
[1734116862887,0.049286,101440.0,101430.0,0.41301705]
[1734116863183,0.049291,101430.0,101420.0,1.42651363]
[1734116863385,0.62229717,101430.0,101420.0,1.29243329]
[1734116863587,0.79918342,101430.0,101420.0,0.09243329]
[1734116864273,0.89246654,101430.0,101420.0,0.09243329]
[1734116864479,0.81146481,101430.0,101420.0,0.09243329]
[1734116865383,0.81146481,101430.0,101420.0,0.049294]
[1734116865884,0.81146481,101430.0,101420.0,0.05929895]
[1734116867487,0.62229717,101430.0,101420.0,0.05929895]
[1734116868482,0.57300617,101430.0,101420.0,0.05929895]
[1734116868685,0.54315618,101430.0,101420.0,0.05929895]
[1734116869075,0.54315618,101430.0,101420.0,0.10243545]
[1734116869287,0.54315618,101430.0,101420.0,0.05929895]
[1734116869488,0.54315618,101430.0,101420.0,1.25929895]
[1734116873000,0.54315618,101430.0,101410.0,0.12566199]
[1734116873001,0.78394547,101430.0,101410.0,0.05077887]
[1734116873292,0.52770844,101420.0,101410.0,0.09391845]
[1734116873496,0.52770844,101420.0,101410.0,1.29391845]
[1734116873497,0.65759156,101420.0,101410.0,1.29391845]
[1734116875293,0.65759156,101420.0,101410.0,1.30452643]
[1734116876093,0.56430844,101420.0,101410.0,1.30452643]
[1734116876301,0.446695,101420.0,101410.0,0.05990798]
[1734116876801,0.446695,101420.0,101410.0,1.25990798]
[1734116877992,0.56430844,101420.0,101410.0,1.25990798]
[1734116881907,0.51501344,101420.0,101410.0,1.25990798]
[1734116882405,0.3974,101420.0,101410.0,1.25990798]
[1734116882607,0.51501344,101420.0,101410.0,1.25990798]
[1734116883203,0.3974,101420.0,101410.0,1.25990798]
[1734116883600,0.3608,101420.0,101410.0,1.25990798]
[1734116883800,0.3608,101420.0,101410.0,1.36670798]
[1734116884507,0.3608,101420.0,101410.0,1.54392761]
[1734116884711,0.3608,101420.0,101410.0,1.36670798]
[1734116885299,0.53967483,101420.0,101410.0,1.54392761]
[1734116885807,0.42206139,101420.0,101410.0,1.40984688]
[1734116886398,0.53967483,101420.0,101410.0,1.40984688]
[1734116888109,0.53967483,101420.0,101410.0,1.47110827]
[1734116888309,0.47841344,101420.0,101410.0,1.47110827]
[1734116888513,0.3608,101420.0,101410.0,1.94538671]
[1734116888707,0.3608,101420.0,101410.0,1.10187117]
[1734116889307,0.3608,101420.0,101410.0,2.03686471]
[1734116890414,0.3608,101420.0,101410.0,2.38973263]
[1734116890817,0.3608,101430.0,101420.0,0.049295]
[1734116891114,0.3608,101430.0,101420.0,0.59882552]
[1734116891714,0.47841344,101430.0,101420.0,0.71684851]
[1734116892212,0.47841344,101430.0,101420.0,0.42179247]
[1734116892406,0.47841344,101430.0,101420.0,0.71684851]
[1734116893314,0.47841344,101430.0,101420.0,0.37865357]
[1734116894722,0.47841344,101430.0,101420.0,1.57865357]
[1734116894920,0.62591961,101440.0,101430.0,0.04929]
[1734116895219,0.47875686,101440.0,101430.0,0.67270511]
[1734116895412,0.3608,101440.0,101430.0,0.82783882]
[1734116895609,0.45411374,101440.0,101430.0,0.32846904]
[1734116895810,0.76886277,101440.0,101430.0,0.22630429]
[1734116896121,0.68840591,101440.0,101430.0,0.04313433]
[1734116896318,0.86489637,101440.0,101430.0,0.04313117]
[1734116897721,0.86489637,101440.0,101420.0,0.46235212]
[1734116897722,0.68840591,101440.0,101420.0,0.46235212]
[1734116897915,0.47870217,101430.0,101420.0,0.50548763]
[1734116898823,0.47870217,101430.0,101420.0,0.59880137]
[1734116900629,0.47870217,101430.0,101420.0,0.55566586]
[1734116901934,0.47870217,101430.0,101420.0,1.75566586]
[1734116903422,0.47870217,101430.0,101420.0,1.79880142]
[1734116905224,0.47870217,101430.0,101420.0,1.75566586]
[1734116906425,0.47870217,101430.0,101420.0,1.79880134]
[1734116906926,0.47870217,101430.0,101420.0,1.75566586]
[1734116907333,0.47870217,101430.0,101420.0,1.79880291]
[1734116908621,0.47870217,101430.0,101420.0,1.70548917]
[1734116908822,0.47870217,101430.0,101420.0,1.66235212]
[1734116910834,0.83950217,101430.0,101420.0,1.66235212]
[1734116911127,0.83950217,101430.0,101420.0,1.72359573]
[1734116912722,0.26540834,101430.0,101420.0,1.72359573]
[1734116912929,0.98700834,101430.0,101420.0,1.76673285]
[1734116915240,0.98700834,101430.0,101420.0,1.58971856]
[1734116917629,0.86910617,101430.0,101420.0,1.58971856]
[1734116918329,0.86910617,101430.0,101420.0,1.8847746]
[1734116919937,0.86910617,101430.0,101420.0,1.58971856]
[1734116921138,0.86910617,101430.0,101420.0,1.8847746]
[1734116922141,0.91839617,101430.0,101420.0,1.8847746]
[1734116922639,0.91839617,101430.0,101420.0,2.12809996]
[1734116922839,0.89337722,101430.0,101420.0,0.04313712]
[1734116923039,0.049295,101420.0,101410.0,0.17733011]
[1734116923245,0.73124102,101420.0,101410.0,1.37733011]
[1734116923435,0.73124102,101420.0,101410.0,1.2]
[1734116923436,0.69560145,101420.0,101410.0,1.2]
[1734116924335,0.68330814,101420.0,101410.0,1.2]
[1734116925741,0.68330814,101420.0,101410.0,1.2493]
[1734116926440,0.83051714,101420.0,101410.0,1.2493]
[1734116927042,0.68330814,101420.0,101410.0,1.2493]
[1734116927243,0.83051798,101420.0,101410.0,1.2493]
[1734116928043,0.47854998,101420.0,101410.0,1.48787372]
[1734116928242,0.47854998,101420.0,101410.0,0.62046216]
[1734116928448,0.3608,101420.0,101410.0,1.02438237]
[1734116928741,0.3608,101420.0,101410.0,2.16313876]
[1734116929738,0.3608,101420.0,101410.0,2.22438237]
[1734116930836,0.3608,101420.0,101410.0,1.98833754]
[1734116931239,0.3608,101420.0,101410.0,1.95917051]
[1734116932330,0.3608,101420.0,101410.0,1.86585032]
[1734116932536,0.3608,101420.0,101410.0,1.95917051]
[1734116932740,0.3608,101420.0,101410.0,1.56373614]
[1734116933037,0.47854998,101420.0,101410.0,1.52059313]
[1734116933242,0.47854998,101420.0,101410.0,0.54073221]
[1734116933443,0.47854998,101420.0,101410.0,0.30473908]
[1734116933642,0.47854998,101420.0,101410.0,1.50473908]
[1734116934440,0.47854998,101420.0,101410.0,1.46943908]
[1734116934646,0.52784598,101420.0,101410.0,1.46943908]
[1734116935446,0.52784598,101420.0,101410.0,1.42629991]
[1734116935949,0.47854998,101420.0,101410.0,1.42629991]
[1734116936444,0.52784598,101420.0,101410.0,1.42629991]
[1734116936644,0.62116617,101420.0,101410.0,1.42014197]
[1734116936841,0.65596617,101420.0,101410.0,1.42014197]
[1734116937041,0.80317601,101420.0,101410.0,1.42014197]
[1734116937238,0.80317601,101420.0,101410.0,1.24314474]
[1734116937440,0.70985582,101420.0,101410.0,1.24314474]
[1734116937642,0.72212241,101420.0,101410.0,1.2493]
[1734116938041,0.69769262,101420.0,101410.0,1.2493]
[1734116938241,0.81543874,101420.0,101410.0,1.2493]
[1734116938447,0.72211855,101420.0,101410.0,1.2493]
[1734116939852,0.59210584,101420.0,101410.0,1.2493]
[1734116940047,0.78134196,101420.0,101410.0,1.2493]
[1734116940247,0.76907537,101420.0,101410.0,1.2493]
[1734116940440,0.86239556,101420.0,101410.0,0.0493]
[1734116941049,0.0493,101410.0,101400.0,0.22630291]
[1734116941252,0.6580548,101410.0,101400.0,0.09245069]
[1734116941547,0.84036464,101410.0,101400.0,0.049303]
[1734116941748,0.62930984,101410.0,101400.0,0.049303]
[1734116941948,0.049305,101400.0,101390.0,1.4718543]
[1734116942140,0.67505622,101400.0,101390.0,1.30240581]
[1734116942449,0.67505622,101400.0,101390.0,1.25925439]
[1734116943153,0.52784638,101400.0,101390.0,1.25925439]
[1734116948449,0.62116657,101400.0,101390.0,1.25925439]
[1734116948653,0.52784638,101400.0,101390.0,1.25925439]
[1734116949350,0.53755773,101400.0,101390.0,1.25925439]
[1734116950444,0.63087792,101400.0,101380.0,0.07717934]
[1734116950651,0.62117157,101390.0,101380.0,0.09246903]
[1734116950852,0.65827157,101390.0,101380.0,0.049314]
[1734116951051,0.69447157,101390.0,101380.0,1.249314]
[1734116953452,0.69447157,101390.0,101380.0,1.26006268]
[1734116953645,0.69447157,101390.0,101380.0,0.001]
[1734116953846,0.85392515,101390.0,101380.0,0.001]
[1734116954055,0.73618377,101390.0,101380.0,0.001]
[1734116954259,0.8536268,101390.0,101380.0,0.001]
[1734116954463,0.73618377,101390.0,101380.0,0.001]
[1734116954852,0.73618377,101390.0,101370.0,1.286819]
[1734116955053,0.62087712,101380.0,101370.0,1.286819]
[1734116955362,0.410115,101380.0,101370.0,1.286819]
[1734116955847,0.50343519,101380.0,101370.0,1.286819]
[1734116957755,0.50343519,101380.0,101370.0,1.29664099]
[1734116958457,0.410115,101380.0,101370.0,1.29664099]
[1734116958653,0.3608,101380.0,101370.0,1.48328137]
[1734116958855,0.3608,101400.0,101390.0,0.04931]
[1734116959062,0.3608,101400.0,101390.0,0.14263019]
[1734116959256,0.3608,101400.0,101390.0,0.18578024]
[1734116959453,0.3608,101400.0,101390.0,0.22238024]
[1734116961761,0.3608,101400.0,101390.0,0.17923019]
[1734116963052,0.3608,101400.0,101390.0,0.3562301]
[1734116964958,0.3608,101400.0,101390.0,0.36592281]
[1734116965655,0.3608,101400.0,101390.0,0.40907051]
[1734116968870,0.3608,101400.0,101390.0,0.64506364]
[1734116969059,0.3608,101410.0,101400.0,0.049305]
[1734116969261,0.3608,101410.0,101400.0,0.25907289]
[1734116969766,0.3608,101410.0,101400.0,1.45907289]
[1734116969965,0.3608,101410.0,101400.0,1.6360728]
[1734116970162,0.3608,101410.0,101400.0,1.68624529]
[1734116970361,0.47824193,101420.0,101400.0,1.72938891]
[1734116970561,0.47824193,101420.0,101410.0,0.17932019]
[1734116970763,0.47824193,101420.0,101410.0,0.22246381]
[1734116971162,0.3608,101420.0,101410.0,0.17932019]
[1734116971559,0.47824193,101420.0,101410.0,0.086]
[1734116972264,0.3608,101420.0,101410.0,0.086]
[1734116974677,0.3608,101420.0,101410.0,0.17932019]
[1734116975270,0.44895155,101420.0,101410.0,1.37932019]
[1734116975669,0.3608,101420.0,101410.0,1.37932019]
[1734116976564,0.3608,101420.0,101410.0,1.59945828]
[1734116976969,0.3608,101420.0,101410.0,1.42245837]
[1734116977164,0.3608,101420.0,101410.0,1.59945828]
[1734116977464,0.45043103,101430.0,101410.0,1.56612265]
[1734116977672,0.45043103,101430.0,101420.0,0.14261519]
[1734116978063,0.00147948,101430.0,101420.0,0.14261519]
[1734116978265,0.3608,101430.0,101420.0,0.21471519]
[1734116978467,0.3608,101430.0,101420.0,0.083595]
[1734116978770,0.49824155,101430.0,101420.0,0.049295]
[1734116979370,0.44895155,101430.0,101420.0,0.049295]
[1734116980072,0.44895155,101430.0,101420.0,0.14261519]
[1734116981779,0.3608,101430.0,101420.0,0.14261519]
[1734116981969,0.55585155,101440.0,101430.0,0.049291]
[1734116982178,0.55585155,101440.0,101430.0,0.14261119]
[1734116985175,0.67329348,101440.0,101430.0,0.14261119]
[1734116986986,0.67329348,101440.0,101430.0,0.23593138]
[1734116987172,0.20559348,101450.0,101440.0,0.049286]
[1734116987377,0.20559348,101450.0,101440.0,1.5196061]
[1734116987378,0.44895155,101450.0,101440.0,1.5196061]
[1734116987789,0.64077256,101460.0,101440.0,1.5196061]
[1734116988082,0.64077256,101460.0,101450.0,0.14260119]
[1734116988484,0.55262101,101460.0,101450.0,0.14260119]
[1734116989077,0.64091142,101460.0,101450.0,0.14260119]
[1734116994080,0.64091142,101460.0,101450.0,0.15254668]
[1734116996588,0.52346949,101460.0,101450.0,0.15254668]
[1734116996886,0.52199041,101460.0,101450.0,0.15254668]
[1734116997083,0.52199041,101460.0,101450.0,1.35254668]
[1734116999786,0.16119041,101460.0,101450.0,1.35254668]
[1734116999982,0.52199041,101460.0,101450.0,1.35254668]
[1734117000893,0.63943234,101460.0,101450.0,1.35254668]
[1734117001287,0.52199041,101460.0,101450.0,1.35254668]
[1734117001588,0.63943234,101460.0,101450.0,1.35254668]
[1734117002888,0.63943234,101460.0,101450.0,1.25922649]
[1734117003187,0.63943234,101460.0,101450.0,1.35254668]
[1734117004189,0.60163234,101460.0,101450.0,1.35254668]
[1734117004385,0.48419041,101460.0,101450.0,1.35254668]
[1734117004581,0.7690519,101470.0,101450.0,1.35254668]
[1734117004882,0.7690519,101470.0,101460.0,0.14259719]
[1734117005086,0.7339519,101470.0,101460.0,0.14259719]
[1734117005395,0.7339519,101470.0,101460.0,1.34259719]
[1734117005984,0.56653234,101470.0,101460.0,1.34259719]
[1734117007987,0.56653234,101470.0,101460.0,1.249277]
[1734117008191,0.47824193,101470.0,101460.0,1.249277]
[1734117009796,0.52751393,101470.0,101460.0,1.249277]
[1734117010000,0.67502164,101470.0,101460.0,1.249277]
[1734117010195,0.55728184,101470.0,101460.0,1.249277]
[1734117010492,0.74651585,101470.0,101460.0,1.249277]
[1734117010799,0.56954632,101470.0,101460.0,1.249277]
[1734117011201,0.74651585,101470.0,101460.0,1.249277]
[1734117012999,0.55728184,101470.0,101460.0,1.249277]
[1734117013197,0.73425137,101470.0,101460.0,1.249277]
[1734117013600,0.74652134,101470.0,101460.0,1.249277]
[1734117013902,0.55728184,101470.0,101460.0,1.249277]
[1734117014197,0.73425137,101470.0,101460.0,1.249277]
[1734117014401,0.74652134,101470.0,101460.0,1.249277]
[1734117014595,0.73425137,101470.0,101460.0,1.34259719]
[1734117015293,0.68497937,101470.0,101460.0,1.34259719]
[1734117016899,0.69724934,101470.0,101460.0,1.34259719]
[1734117017094,0.5993115,101470.0,101460.0,1.56271888]
[1734117017295,0.5993115,101470.0,101460.0,1.5195971]
[1734117018096,0.73452746,101470.0,101460.0,1.5195971]
[1734117020599,0.5993115,101470.0,101460.0,1.56271889]
[1734117021099,0.59933371,101470.0,101460.0,1.56271889]
[1734117022900,0.58704153,101470.0,101460.0,1.56271889]
[1734117023110,0.59933475,101470.0,101460.0,1.56271889]
[1734117023503,0.73456878,101470.0,101460.0,1.5195971]
[1734117025111,0.73456878,101470.0,101460.0,1.75559023]
[1734117025412,0.58704153,101470.0,101460.0,1.75559023]
[1734117027009,0.59933475,101470.0,101460.0,1.79871202]
[1734117027209,0.59933475,101470.0,101460.0,1.76658747]
[1734117028512,0.59933475,101470.0,101460.0,1.82778311]
[1734117028513,0.55006275,101470.0,101460.0,1.82778311]
[1734117028718,0.50835679,101470.0,101460.0,0.74583924]
[1734117028909,0.50835679,101470.0,101460.0,0.88063488]
[1734117029211,0.47885149,101470.0,101460.0,2.08378635]
[1734117029604,0.47885149,101470.0,101460.0,2.08325934]
[1734117029801,0.47885149,101470.0,101460.0,1.89967242]
[1734117030109,0.55762879,101470.0,101460.0,1.66345531]
[1734117030304,0.55762879,101470.0,101460.0,1.72465095]
[1734117030609,0.50835679,101470.0,101460.0,1.72465095]
[1734117031007,0.62637187,101470.0,101460.0,2.01970699]
[1734117031207,0.62637296,101470.0,101460.0,1.69548838]
[1734117031711,0.62637296,101470.0,101460.0,1.99054442]
[1734117031913,0.62637296,101470.0,101460.0,2.22917902]
[1734117032210,0.47881617,101470.0,101460.0,1.99291814]
[1734117033402,0.47881617,101470.0,101460.0,2.22914434]
[1734117033912,0.56732191,101470.0,101460.0,2.08614685]
[1734117034110,0.56732191,101470.0,101460.0,2.08608014]
[1734117034111,0.20652191,101470.0,101460.0,2.08608014]
[1734117036415,0.56732191,101470.0,101460.0,2.32224671]
[1734117036818,0.56732191,101470.0,101460.0,2.229018]
[1734117037209,0.62637296,101470.0,101460.0,2.229018]
[1734117037418,0.62637296,101470.0,101460.0,1.99045011]
[1734117037924,0.62637296,101470.0,101460.0,1.60216536]
[1734117038123,0.62637296,101470.0,101460.0,1.96575328]
[1734117038326,0.62637296,101470.0,101460.0,1.87252457]
[1734117040018,0.62637296,101470.0,101460.0,1.99045011]
[1734117040422,0.47881617,101470.0,101460.0,2.32358696]
[1734117040621,0.56729281,101470.0,101460.0,2.32358696]
[1734117041018,0.56729281,101470.0,101460.0,2.23035825]
[1734117042234,0.56729281,101470.0,101460.0,2.24973689]
[1734117043126,0.56729281,101470.0,101460.0,2.24947037]
[1734117043323,0.52808817,101470.0,101460.0,2.21207037]
[1734117043521,0.67564496,101470.0,101460.0,0.50570181]
[1734117043724,0.62637296,101470.0,101460.0,0.59893052]
[1734117044030,0.26557296,101470.0,101460.0,1.71502278]
[1734117044223,0.11797117,101480.0,101470.0,0.049272]
[1734117044529,0.68680495,101490.0,101480.0,0.049267]
[1734117044530,0.50983542,101490.0,101480.0,0.049267]
[1734117044735,0.00147863,101490.0,101480.0,1.0351896]
[1734117045029,0.00147863,101490.0,101480.0,0.79909866]
[1734117045236,0.00147863,101490.0,101480.0,0.89232737]
[1734117045430,0.00147863,101490.0,101480.0,1.1282804]
[1734117045625,0.81002766,101500.0,101480.0,1.03505169]
[1734117045626,0.64265679,101500.0,101480.0,1.03505169]
[1734117045830,0.64265679,101500.0,101490.0,0.27019259]
[1734117046126,0.64265679,101500.0,101490.0,0.36256618]
[1734117046326,0.4951,101500.0,101490.0,0.31945459]
[1734117048337,0.4951,101500.0,101490.0,0.14249071]
[1734117049229,0.4951,101500.0,101490.0,0.049262]
[1734117049230,0.544358,101500.0,101490.0,0.049262]
[1734117049433,0.615558,101500.0,101490.0,0.049262]
[1734117050528,0.5663,101500.0,101490.0,0.049262]
[1734117051326,0.5663,101500.0,101490.0,0.05904883]
[1734117051930,0.4663,101500.0,101490.0,0.23601271]
[1734117052336,0.4663,101500.0,101490.0,0.32924142]
[1734117052535,0.4663,101500.0,101490.0,0.23601271]
[1734117052726,0.515558,101500.0,101490.0,0.23601271]
[1734117052930,0.515558,101500.0,101490.0,0.05904883]
[1734117054641,0.66311479,101500.0,101490.0,0.05904883]
[1734117055231,0.30231479,101500.0,101490.0,0.05904883]
[1734117055432,1.02391479,101500.0,101490.0,0.05904883]
[1734117055643,0.4663,101500.0,101490.0,0.05904883]
[1734117056240,0.4663,101500.0,101490.0,0.23601271]
[1734117057135,0.3951,101500.0,101490.0,0.32924142]
[1734117057729,0.3951,101500.0,101490.0,1.52924142]
[1734117061144,0.3951,101500.0,101490.0,1.49716678]
[1734117061735,0.3951,101500.0,101490.0,1.73311981]
[1734117062530,0.3951,101500.0,101490.0,1.49716678]
[1734117064539,0.3951,101500.0,101490.0,1.73311981]
[1734117065139,0.45625407,101500.0,101490.0,1.67196574]
[1734117065345,0.63806614,101500.0,101480.0,0.41291691]
[1734117065636,0.62749896,101490.0,101470.0,0.22623288]
[1734117065841,0.54934317,101480.0,101470.0,1.2]
[1734117066031,0.72407886,101480.0,101470.0,1.2]
[1734117066437,0.515368,101480.0,101470.0,1.2]
[1734117066633,0.66292479,101480.0,101470.0,1.2]
[1734117066830,0.66292479,101480.0,101470.0,1.249272]
[1734117067138,0.72407886,101480.0,101470.0,1.249272]
[1734117067442,0.66292479,101480.0,101470.0,1.249272]
[1734117069043,0.66292479,101480.0,101470.0,0.049272]
[1734117069335,0.66292479,101480.0,101470.0,1.249272]
[1734117072642,0.7561698,101480.0,101470.0,1.2]
[1734117074450,0.93313933,101480.0,101470.0,1.2]
[1734117074750,0.94540426,101480.0,101470.0,1.2]
[1734117074948,0.79784747,101480.0,101470.0,1.2]
[1734117075142,0.049277,101460.0,101440.0,0.17696388]
[1734117075448,0.049287,101440.0,101430.0,0.00157741]
[1734117075745,0.049287,101440.0,101430.0,1.20009877]
[1734117075746,0.50333201,101440.0,101430.0,1.20009877]
[1734117077548,0.50333201,101440.0,101430.0,1.2]
[1734117077743,0.50333201,101440.0,101420.0,0.05889623]
[1734117077944,0.50333701,101430.0,101420.0,0.05889623]
[1734117078347,0.50333701,101430.0,101420.0,1.25889623]
[1734117079551,0.59658202,101430.0,101420.0,1.2]
[1734117079847,0.049297,101420.0,101410.0,0.0493]
[1734117080072,0.53764201,101420.0,101410.0,0.0493]
[1734117080248,0.53764201,101420.0,101410.0,1.2493]
[1734117080954,0.53764201,101420.0,101410.0,1.2]
[1734117081151,0.60864201,101420.0,101410.0,1.2]
[1734117081750,0.60864201,101420.0,101400.0,0.15923875]
[1734117081751,0.049302,101410.0,101400.0,0.15923875]
[1734117082050,0.50334701,101410.0,101400.0,0.15923875]
[1734117082257,0.50334701,101410.0,101400.0,1.35923875]
[1734117083657,0.4661,101420.0,101400.0,1.40317876]
[1734117083861,0.515399,101420.0,101410.0,0.049302]
[1734117085156,0.410099,101420.0,101410.0,0.14254701]
[1734117085357,0.410099,101420.0,101410.0,0.17904701]
[1734117085751,0.3608,101420.0,101410.0,0.17904701]
[1734117087147,0.3608,101430.0,101420.0,0.049297]
[1734117087458,0.514389,101440.0,101420.0,0.14254201]
[1734117087651,0.514389,101440.0,101420.0,1.34254201]
[1734117088058,0.3608,101430.0,101420.0,1.34254201]
[1734117088364,0.3608,101430.0,101420.0,1.249297]
[1734117088560,0.3608,101430.0,101420.0,1.34254201]
[1734117088955,0.3608,101430.0,101420.0,1.37774201]
[1734117092762,0.3608,101430.0,101420.0,1.41454201]
[1734117093659,0.3608,101430.0,101420.0,0.22452836]
[1734117094060,0.3608,101430.0,101420.0,1.42452836]
[1734117099962,0.410092,101430.0,101420.0,0.05928335]
[1734117100363,0.446192,101430.0,101420.0,0.05928335]
[1734117100664,0.3608,101430.0,101420.0,1.35252836]
[1734117101169,0.3608,101430.0,101420.0,1.39566434]
[1734117101356,0.3608,101430.0,101420.0,1.39566427]
[1734117101858,0.3608,101430.0,101420.0,1.39566349]
[1734117102063,0.3608,101430.0,101420.0,1.70237238]
[1734117102262,0.37448056,101450.0,101440.0,0.049287]
[1734117102458,0.50919801,101450.0,101440.0,0.14253201]
[1734117102768,0.36227933,101450.0,101440.0,0.14253201]
[1734117103469,0.41156133,101450.0,101440.0,0.049287]
[1734117103664,0.55848001,101450.0,101440.0,0.049287]
[1734117104168,0.67602602,101450.0,101440.0,0.049287]
[1734117104369,0.62674402,101450.0,101440.0,0.14253201]
[1734117104572,0.50919801,101450.0,101440.0,0.14253201]
[1734117105369,0.62679414,101450.0,101440.0,0.14253201]
[1734117107063,0.47987546,101450.0,101440.0,0.14253201]
[1734117107272,0.62679414,101450.0,101440.0,0.14253201]
[1734117107474,0.47987546,101450.0,101440.0,0.14253201]
[1734117107773,0.47987546,101450.0,101440.0,0.15221559]
[1734117109569,0.51357546,101450.0,101440.0,0.05897058]
[1734117110872,0.59825746,101450.0,101440.0,0.05897058]
[1734117112567,0.74517614,101450.0,101440.0,0.05897058]
[1734117113475,0.049287,101440.0,101430.0,0.22625488]
[1734117113770,0.65703153,101440.0,101430.0,0.22625488]
[1734117114173,0.80395021,101440.0,101430.0,0.049291]
[1734117114473,0.7107052,101440.0,101430.0,0.26938937]
[1734117114773,0.7107052,101440.0,101430.0,0.26938924]
[1734117114973,0.7107052,101440.0,101430.0,0.22625488]
[1734117115875,0.7107052,101440.0,101430.0,0.31949989]
[1734117116085,0.6253182,101440.0,101430.0,0.31949989]
[1734117116372,0.6253182,101440.0,101430.0,0.36263412]
[1734117116674,0.6253182,101440.0,101430.0,1.56263412]
[1734117116863,0.6253182,101440.0,101430.0,1.79858715]
[1734117118563,0.47839952,101440.0,101430.0,1.75545292]
[1734117119671,0.11759952,101440.0,101430.0,1.75545292]
[1734117119980,0.47839952,101440.0,101430.0,1.75545292]
[1734117121472,0.47839952,101440.0,101430.0,1.79858678]
[1734117121671,0.47839952,101440.0,101430.0,1.57848904]
[1734117123776,0.47839952,101440.0,101430.0,1.48524403]
[1734117125580,0.47839952,101440.0,101430.0,1.57848904]
[1734117127086,0.14691868,101450.0,101430.0,1.13253405]
[1734117127378,0.50771868,101460.0,101440.0,0.21633201]
[1734117127574,0.14691868,101460.0,101450.0,0.55581817]
[1734117127773,0.14691868,101460.0,101450.0,0.59894597]
[1734117127774,0.50771868,101460.0,101450.0,0.59894597]
[1734117128179,0.25991868,101470.0,101450.0,0.73949339]
[1734117128386,0.113,101470.0,101460.0,0.555813]
[1734117128681,0.4738,101470.0,101460.0,0.46256799]
[1734117128890,0.113,101470.0,101460.0,0.46256799]
[1734117129587,0.113,101470.0,101460.0,0.555813]
[1734117130287,0.113,101470.0,101460.0,0.31964662]